Cogmind - Beta 17.1 @@@ ROGUE MODE // 2026.09.12 @ 21:13:14 Player: MORONI274 Result: Destroyed by P-60 Hacker with Shock Rifle Performance ------------- Evolutions (3) 1500 Regions Visited (6) 1200 Robots Destroyed (69) 345 Value Destroyed (2290) 2290 Prototype IDs (24) 480 Alien Tech Used (0) 0 Bonus (490) 490 TOTAL SCORE: 6305 Bonus ------- High Alert Combat Kills 190 Aligned with FarCom 300 Cogmind --------- Core Integrity 0/700 Matter 179/300 Energy 160/160 System Corruption 25% Temperature Cool (0) Movement Core (500) Ox9 Location -7/Factory Parts ------- > --- POWER (2) -------- Light Nuclear Core > --- PROPULSION (4) --- (None) > --- UTILITY (5) ------ Improved Heat Sink Large Storage Unit Hacking Suite > --- WEAPON (2) ------- Axe > --- INVENTORY (15) --- Terrain Scanner EM Pulse Cannon Plasma Cannon Plasma Cannon Flak Cannon Mining Laser Peak State ------------ > --- POWER ------------ Light Nuclear Core Light Nuclear Core > --- PROPULSION ------- Wheel Compact Wheel Armored Huge Wheel > --- UTILITY ---------- Large Storage Unit Compact Matter Pod Weight Redist. System Improved Utility Shielding Hacking Suite > --- WEAPON ----------- Latent Energy Streamer Plasma Cannon > --- INVENTORY -------- Cesium-ion Thruster Cesium-ion Thruster Cesium-ion Thruster Cesium-ion Thruster Cesium-ion Thruster Cesium-ion Thruster Terrain Scanner Medium Reactive Plating EM Pulse Cannon Plasma Cannon Flak Cannon Rocket Launcher Mining Laser Mining Laser Axe [Rating: 46] Favorites ----------- Power Light Nuclear Core Engine Ion Engine Power Core Light Nuclear Core Propulsion Light Treads Treads Light Treads Leg Aluminum Leg Wheel Compact Wheel Hover Unit Airjet Flight Unit Cesium-ion Thruster Utility Large Storage Unit Device Terrain Scanner Storage Large Storage Unit Hackware Hacking Suite Protection Improved Utility Shielding Weapon Assault Rifle Energy Gun Small Laser Energy Cannon Latent Energy Streamer Ballistic Gun Assault Rifle Ballistic Cannon Flak Cannon Launcher Rocket Launcher Special Weapon Mining Laser Slashing Weapon Axe Build | -11 -10 -10 -10 -9 -8 -7 ------- Run | Yrd Mat Min Exi Min Mat Fac Slots Evolved 6 | . . . . . 4 2 Power 1 | . . . . . 1 . Propulsion 2 | . . . . . 2 . Utility 3 | . . . . . 1 2 Weapon . | . . . . . . . Parts Attached 53 | 6 1 . . 1 24 21 Power 11 | 1 . . . . 6 4 Engine 6 | 1 . . . . 3 2 Core 5 | . . . . . 3 2 Reactor . | . . . . . . . Propulsion 16 | 2 . . . . 6 8 Treads 5 | 2 . . . . 3 . Leg 1 | . . . . . . 1 Wheel 3 | . . . . . 2 1 Hover 1 | . . . . . 1 . Flight 6 | . . . . . . 6 Utility 13 | 1 1 . . . 5 6 Device 4 | . 1 . . . . 3 Storage 5 | 1 . . . . 2 2 Processor . | . . . . . . . Hackware 1 | . . . . . 1 . Protection 3 | . . . . . 2 1 Artifact . | . . . . . . . Weapon 13 | 2 . . . 1 7 3 Energy Gun 1 | 1 . . . . . . Energy Cannon 3 | . . . . . 2 1 Ballistic Gun 2 | 1 . . . . 1 . Ballistic Cannon 1 | . . . . . 1 . Launcher 2 | . . . . . 1 1 Special Weapon 2 | . . . . 1 . 1 Impact Weapon . | . . . . . . . Slashing Weapon 2 | . . . . . 2 . Piercing Weapon . | . . . . . . . Special Melee Weapon . | . . . . . . . Unidentified Prototypes 1 | . . . . . . 1 Parts Lost 32 | . . . . . 8 24 Power 7 | . . . . . 3 4 Propulsion 14 | . . . . . 4 10 Utility 7 | . . . . . 1 6 Weapon 4 | . . . . . . 4 Highest Loss Streak 11 | . . . . . 4 11 To Critical Strikes . | . . . . . . . Average Backups 10 | 3 6 8 8 8 12 12 Power . | . 1 1 1 1 . . Propulsion 4 | 2 4 4 4 3 4 4 Utility 1 | . . . . . 2 1 Weapon 4 | . 1 3 3 3 5 6 Tool/Special . | . . . . . . . Unused Backups 8 | . 1 . 1 2 3 1 Power . | . . . . . . . Propulsion 4 | . 1 . . 1 2 . Utility 2 | . . . . 1 1 . Weapon 2 | . . . 1 . . 1 Tool/Special . | . . . . . . . Average Slot Usage (%) 92 | . 90 100 100 100 91 80 Engine 8 | . 14 14 14 14 7 1 Core 6 | . . . . . 10 11 Treads 19 | . 28 28 28 28 18 . Wheel 6 | . . . . . 8 15 Hover 1 | . . . . . 3 . Device 7 | . 4 14 14 14 2 6 Storage 12 | . 14 14 14 14 10 13 Hackware 3 | . . . . . 6 7 Protection 3 | . . . . . 6 5 Energy Gun 5 | . 14 14 14 7 . . Energy Cannon 4 | . . . . . 5 9 Ballistic Gun 8 | . 14 14 14 14 7 . Ballistic Cannon 1 | . . . . . 2 . Peak Build Rating 46 | 6 7 7 8 8 34 46 Average Rating 20 | 4 6 7 7 8 26 37 On Entrance 10 | . 6 7 7 8 8 34 Avg Prop Armor Cover (%) 5 | . . . . . 5 13 Naked Turns . | . . . . . . . Heaviest Build 53 | 13 14 14 14 14 53 51 Greatest Support 80 | 40 40 40 40 40 80 60 Greatest Overweight (x) 12 | 4 . . . . 3 12 Average Overweight (x) . | . . . . . . . Largest Inventory Capacity 15 | 8 8 8 8 8 15 15 Average Capacity 11 | 7 8 8 8 8 13 15 Most Carried 15 | 6 8 8 8 8 15 15 Average Carried 10 | 3 6 8 7 7 12 12 Final Capacity 15 | 8 8 8 8 8 15 15 Final Carried 15 | 6 8 8 8 8 15 6 Class Distribution -------------------- 79% | Mutant 20% | Skirmisher Dominant Class ---------------- Mutant | -10/Materials Mutant | -10/Mines Mutant | -10/Exiles Skirmisher | -9/Mines Mutant | -8/Materials Mutant | -7/Factory Resources | -11 -10 -10 -10 -9 -8 -7 ----------- Run | Yrd Mat Min Exi Min Mat Fac Matter Collected 1322 | 230 88 . . . 714 290 Remotely . | . . . . . . . Salvage Created 1876 | . 93 . . . 860 923 Parts 121 | . 8 . . . 53 60 Haulers Intercepted 2 | . . . . . 1 1 Recyclers Shooed 2 | . . . . . 1 1 Parts Field Recycled . | . . . . . . . Retrieved Matter . | . . . . . . . Parts Self-Destructed . | . . . . . . . Prevented . | . . . . . . . Parts Restored . | . . . . . . . Kills | -11 -10 -10 -10 -9 -8 -7 ------- Run | Yrd Mat Min Exi Min Mat Fac Combat Hostiles Destroyed 45 | . 3 . . . 18 24 Melee 10 | . . . . . 6 4 Guns 5 | . 3 . . . 2 . Cannons 3 | . . . . . . 3 AOE 25 | . . . . . 10 15 Classes Destroyed 16 | . 3 . . . 7 6 Worker 7 | . 1 . . . 2 4 Builder 3 | . . . . . 2 1 Tunneler 1 | . . . . . . 1 Hauler 2 | . . . . . 1 1 Recycler 2 | . . . . . 1 1 Mechanic 2 | . . . . . . 2 Operator 1 | . . . . . 1 . Watcher 6 | . 1 . . . 3 2 Swarmer 15 | . 3 . . . 6 6 Grunt 13 | . . . . . 8 5 Protector 1 | . . . . . . 1 Sentry 3 | . . . . . 3 . Specialist 2 | . . . . . . 2 Hunter 6 | . . . . . . 6 Programmer 4 | . . . . . . 4 Heavy 1 | . . . . . 1 . Best Kill Streak 12 | . 2 . . . 12 8 Combat Bots Only 8 | . 2 . . . 8 7 Max Kills in Single Turn 4 | . 2 . . . 4 4 Gunslinging . | . . . . . . . Exploded 3 | . . . . . 2 3 Melee 1 | . . . . . 1 1 Uniques/NPCs Destroyed . | . . . . . . . Combat | -11 -10 -10 -10 -9 -8 -7 -------- Run | Yrd Mat Min Exi Min Mat Fac Hostile Shots Fired 381 | . 30 . . . 127 224 Missed 124 | . 14 . . . 42 68 Hits 257 | . 16 . . . 85 156 Projectile 257 | . 16 . . . 85 156 Critical Strikes 13 | . . . . . 4 9 Actively Blocked 1 | . . . . . . 1 Damage Taken 4264 | . 124 . . . 1216 2924 Core 896 | . 14 . . . 169 713 Absorbed by Shields . | . . . . . . . Redirected to Shielding 106 | . . . . . . 106 Ignored by Resistances 20 | . . . . . . 20 Core Remaining (%) 87 | 100 . . . 94 69 . Volleys Fired 81 | . 16 . . 1 29 35 Largest 2 | . 2 . . 2 2 2 Hottest 160 | . 60 . . 120 140 160 Shots Fired 122 | . 32 . . 2 38 50 Gun 51 | . 32 . . 1 18 . Cannon 48 | . . . . . 12 36 Launcher 17 | . . . . . 8 9 Special 6 | . . . . 1 . 5 Kinetic 48 | . 16 . . 1 20 11 Thermal 43 | . 16 . . 1 1 25 Explosive 17 | . . . . . 8 9 Electromagnetic 14 | . . . . . 9 5 Robot Hit Streak 6 | . 4 . . . 6 4 Robot Miss Streak 11 | . 7 . . . 3 11 Penetration Max . | . . . . . . . Secondary Targets 1 | . 1 . . . . . Max Gunslinging Chain 1 | . 1 . . . . . Shots Hit Robots 75 | . 12 . . . 30 33 Core Hits 147 | . 5 . . . 59 83 Critical Kills 1 | . . . . . . 1 Critical Parts Destroyed . | . . . . . . . Critical Strikes 2 | . . . . . . 2 Meltdown 1 | . . . . . . 1 Sever 1 | . . . . . . 1 Melee Attacks 30 | . . . . . 15 15 Impact . | . . . . . . . Slashing 30 | . . . . . 15 15 Piercing . | . . . . . . . Sneak Attacks 1 | . . . . . . 1 Combat Hostiles . | . . . . . . . Follow-up Attacks . | . . . . . . . Damage Inflicted 6709 | . 158 . . . 2533 4018 Guns 415 | . 158 . . . 257 . Cannons 329 | . . . . . 11 318 Explosions 5156 | . . . . . 1846 3310 Melee 794 | . . . . . 415 379 Ramming 15 | . . . . . 4 11 Kinetic 429 | . 114 . . . 257 58 Thermal 551 | . 44 . . . . 507 Explosive 2617 | . . . . . 655 1962 Electromagnetic 2303 | . . . . . 1202 1101 Impact . | . . . . . . . Slashing 794 | . . . . . 415 379 Piercing . | . . . . . . . Highest Corruption 25 | . . . . . 19 25 Average Corruption 11 | . . . . . 12 10 Corruption Purged . | . . . . . . . Corruption Blocked . | . . . . . . . Effects 76 | . . . . . 53 23 Message Errors 24 | . . . . . 17 7 Matter Fused 13 | . . . . . 8 5 Heat Flow Errors 8 | . . . . . 5 3 Energy Discharges 11 | . . . . . 9 2 Parts Rejected 1 | . . . . . . 1 Parts Fused 2 | . . . . . 2 . Data Loss (minor) 7 | . . . . . 5 2 Data Loss (major) 4 | . . . . . 3 1 Misfires 2 | . . . . . 2 . Alerts 1 | . . . . . 1 . Misdirections 3 | . . . . . 1 2 Overload Shots . | . . . . . . . Overflow Damage 218 | . . . . . 53 165 Projectiles 4 | . . . . . . 4 Explosions 188 | . . . . . 53 135 Melee 26 | . . . . . . 26 Knockbacks 3 | . . . . . . 3 Impact . | . . . . . . . Kinetic 3 | . . . . . . 3 Secondary . | . . . . . . . Self-Inflicted Damage 441 | . . . . . . 441 Shots 13 | . . . . . . 13 Rammed 4 | . . 1 . . 1 2 Targets Rammed 4 | . . 1 . . 1 2 Kicked . | . . . . . . . Crushed . | . . . . . . . Highest Temperature 410 | . . . . 20 277 410 Average Temperature 92 | . . . . 10 71 116 Received Heat Transfer 1182 | . . . . . 378 804 Effects 5 | . . . . . . 5 Shutdowns 1 | . . . . . . 1 Energy Bleed 1 | . . . . . . 1 Interference 2 | . . . . . . 2 Damage (minor) 1 | . . . . . . 1 Siege Activations . | . . . . . . . Martial Activations . | . . . . . . . Shielding Activations . | . . . . . . . Robots Disrupted . | . . . . . . . Combat Hostiles . | . . . . . . . Robots Corrupted 2 | . . . . . 1 1 Combat Hostiles 1 | . . . . . . 1 Parts Fried 8 | . . . . . 2 6 Impact Corruptions . | . . . . . . . Robots Melted 1 | . . . . . . 1 Combat Hostiles 1 | . . . . . . 1 Parts Melted 3 | . . . . . . 3 Heat Transferred 750 | . 100 . . . . 650 Parts Sabotaged . | . . . . . . . Parts Stolen . | . . . . . . . Parts Stripped . | . . . . . . . Power Chain Reactions . | . . . . . . . Latent Energy Used 1970 | . . . . . 970 1000 LE Corruption 34 | . . . . . 19 15 Alert | -11 -10 -10 -10 -9 -8 -7 ------- Run | Yrd Mat Min Exi Min Mat Fac Maximum Alert Level 3 | . . . . . 1 3 Low Security (%) 86 | 100 100 100 . 100 88 70 Level 1 7 | . . . . . 11 5 Level 2 5 | . . . . . . 20 Level 3 . | . . . . . . 3 Level 4 . | . . . . . . . Level 5 . | . . . . . . . High Security . | . . . . . . . Max Security . | . . . . . . . Peak Influence 719 | . 55 5 . 1 308 719 Initial 28 | . . 5 . . . 28 Average 95 | . 23 3 . . 81 205 Influence Increases 1899 | . 82 . . 1 649 1167 Destroy 0b10 Robot/C 880 | . 60 . . . 360 460 Destroy 0b10 Robot/NC 125 | . 10 . . . 50 65 Destroy Leader 196 | . 12 . . . 88 96 Disable Machine 240 | . . . . . 60 180 Anti-Garrison Action 150 | . . . . . . 150 Destroy Structure 308 | . . . . 1 91 216 Influence Decreases 1227 | . 67 15 . 1 586 558 Entered New Map 45 | . . 10 . . . 35 Time Decay 712 | . 67 5 . 1 356 283 Lost Part 320 | . . . . . 80 240 Purge Threat 150 | . . . . . 150 . Squads Dispatched 10 | . . . . . 3 7 Investigation . | . . . . . . . Extermination 2 | . . . . . . 2 Reinforcement 5 | . . . . . 3 2 Assault 3 | . . . . . . 3 Garrison . | . . . . . . . Intercept . | . . . . . . . Searches Triggered . | . . . . . . . Construction Impeded 2 | . . . . . 1 1 Haulers Reinforced . | . . . . . . . Active Scanning Responses . | . . . . . . . Cargo Convoy Interrupts 1 | . . . . . . 1 Stealth | -11 -10 -10 -10 -9 -8 -7 --------- Run | Yrd Mat Min Exi Min Mat Fac Distress Signals 5 | . . . . . 4 1 Communications Jammed . | . . . . . . . Distress Signals . | . . . . . . . Times Spotted 67 | . 4 . . . 28 35 Peak Tracking Total 12 | . 3 . . . 9 12 Tactical Retreats . | . . . . . . . Traps | -11 -10 -10 -10 -9 -8 -7 ------- Run | Yrd Mat Min Exi Min Mat Fac Traps Triggered 1 | . . . . . . 1 Indirectly . | . . . . . . . Trap Hack Attempts . | . . . . . . . Triggered . | . . . . . . . Disarmed . | . . . . . . . Reprogrammed . | . . . . . . . Reused . | . . . . . . . Traps Extracted . | . . . . . . . Installed . | . . . . . . . Triggered . | . . . . . . . Machines | -11 -10 -10 -10 -9 -8 -7 ---------- Run | Yrd Mat Min Exi Min Mat Fac Machines Disabled 17 | . . . . . 4 13 Max in Single Turn 4 | . . . . . 2 4 Garrison Access 2 | . . . . . 1 1 Machines Repaired . | . . . . . . . Machines Dismantled . | . . . . . . . Machines Sabotaged . | . . . . . . . Overloaded Fab Kills . | . . . . . . . Hacking | -11 -10 -10 -10 -9 -8 -7 --------- Run | Yrd Mat Min Exi Min Mat Fac Machines Accessed 11 | . . . 5 . 5 1 Terminals 4 | . . . . . 3 1 Fabricators . | . . . . . . . Repair Stations . | . . . . . . . Recycling Units . | . . . . . . . Scanalyzers 1 | . . . . . 1 . Garrison Access 1 | . . . . . 1 . Total Hacks 58 | . . . 50 . 7 1 Successful 54 | . . . 50 . 4 . Failed 4 | . . . . . 3 1 Catastrophic . | . . . . . . . Database Lockouts . | . . . . . . . Manual 5 | . . . 1 . 3 1 Terminals 6 | . . . . . 5 1 Fabricators . | . . . . . . . Repair Stations . | . . . . . . . Recycling Units . | . . . . . . . Scanalyzers 1 | . . . . . 1 . Garrison Access 1 | . . . . . 1 . Terminal Hacks 52 | . . . 50 . 2 . Record 49 | . . . 49 . . . Alert Level 1 | . . . . . 1 . Unreport Threat 1 | . . . . . 1 . Proto ID Catalog 1 | . . . 1 . . . Fabricator Hacks . | . . . . . . . Repair Station Hacks . | . . . . . . . Recycling Unit Hacks . | . . . . . . . Scanalyzer 1 | . . . . . 1 . Insert Component 1 | . . . . . 1 . Garrison Access Hacks 1 | . . . . . 1 . Seal Access 1 | . . . . . 1 . Unauthorized Hacks . | . . . . . . . Terminals . | . . . . . . . Fabricators . | . . . . . . . Repair Stations . | . . . . . . . Recycling Units . | . . . . . . . Scanalyzers . | . . . . . . . Garrison Access . | . . . . . . . Data Cores Recovered . | . . . . . . . Used . | . . . . . . . Hacking Detections 4 | . . . . . 3 1 Full Trace Events . | . . . . . . . Feedback Events . | . . . . . . . Feedback Blocked . | . . . . . . . Robot Schematics Acquired . | . . . . . . . Robots Built . | . . . . . . . Authchips . | . . . . . . . Time . | . . . . . . . Total Robot Build Rating . | . . . . . . . Part Schematics Acquired . | . . . . . . . Parts Built . | . . . . . . . Authchips . | . . . . . . . Time . | . . . . . . . Total Part Build Rating . | . . . . . . . Part Studies Acquired . | . . . . . . . Parts Repaired . | . . . . . . . Time . | . . . . . . . Parts Recycled . | . . . . . . . Recycled Matter . | . . . . . . . Retrieved Matter . | . . . . . . . Retrieved Components . | . . . . . . . Parts Scanalyzed . | . . . . . . . Part Schematics Acquired . | . . . . . . . Parts Damaged . | . . . . . . . Bothacking | -11 -10 -10 -10 -9 -8 -7 ------------ Run | Yrd Mat Min Exi Min Mat Fac Used RIF Installer . | . . . . . . . Robots Hacked . | . . . . . . . Non-combat . | . . . . . . . Combat . | . . . . . . . Robot Hacks Applied . | . . . . . . . Relay Couplers Released 2 | . . . . . . 2 Machine Destruction 2 | . . . . . . 2 Fabnet Peak Effective % . | . . . . . . . Robots Rewired . | . . . . . . . Allies Hacked . | . . . . . . . Hacks Repelled . | . . . . . . . Allies | -11 -10 -10 -10 -9 -8 -7 -------- Run | Yrd Mat Min Exi Min Mat Fac Total Allies . | . . . . . . . Largest Group . | . . . . . . . Highest-Rated Group . | . . . . . . . Highest-Rated Ally . | . . . . . . . Total Orders . | . . . . . . . Ally Attacks . | . . . . . . . Total Damage . | . . . . . . . Kills . | . . . . . . . Allies Corrupted . | . . . . . . . Allies Melted . | . . . . . . . Intel | -11 -10 -10 -10 -9 -8 -7 ------- Run | Yrd Mat Min Exi Min Mat Fac Active Infowar (turns) 2565 | . 73 28 1398 646 420 . Terrain 2565 | . 73 28 1398 646 420 . Robot Analysis Total . | . . . . . . . Derelict Logs Recovered . | . . . . . . . Drone Launches . | . . . . . . . Drone Recoveries . | . . . . . . . Exploration | -11 -10 -10 -10 -9 -8 -7 ------------- Run | Yrd Mat Min Exi Min Mat Fac Turns Passed 5336 | 94 194 28 1398 646 1924 1052 Spaces Moved 3227 | 54 89 17 873 398 996 800 Core 25 | 16 . . . . . 9 Treads 2190 | 38 89 17 873 398 775 . Legs 2 | . . . . . . 2 Wheels 935 | . . . . . 219 716 Hover 2 | . . . . . 2 . Flight 73 | . . . . . . 73 Fastest Speed 26 | 50 160 160 160 160 105 26 Average Speed 149 | 147 160 160 160 160 173 103 Slowest Speed 650 | 250 160 160 160 160 280 650 Overloaded Moves . | . . . . . . . Propulsion Burnouts . | . . . . . . . Robots Hopped . | . . . . . . . Potential Cave-ins . | . . . . . . . Cave-ins Triggered . | . . . . . . . Exploration Rate (%) 37 | 4 17 5 92 67 54 20 Regions Visited 6 Branch Regions 3 Pre-discovered Areas 1 | . . . 1 . . . Known Exits Taken . | . . . . . . . Unknown Exits Taken 6 | 1 1 1 1 1 1 . Scrap Searched . | . . . . . . . Spaces Dug 1 | . . . . 1 . . Terrain Destroyed 372 | . . . . 1 89 282 Melee . | . . . . . . . Projectile 2 | . . . . 1 . 1 AOE 370 | . . . . . 89 281 Terrain Rammed . | . . . . . . . Walls Destroyed . | . . . . . . . Machines Disabled . | . . . . . . . Actions | -11 -10 -10 -10 -9 -8 -7 --------- Run | Yrd Mat Min Exi Min Mat Fac Total 3516 | 65 109 17 875 404 1126 920 Wait 50 | . . . . . 15 35 Move 3221 | 53 88 16 872 397 995 800 Hop . | . . . . . . . Pick Up 33 | 6 3 . 1 2 18 3 Fast Attach 26 | 6 1 . . . 10 9 Attach 21 | . . . . . 9 12 Detach 2 | . . . . . 2 . Swap 27 | . . . . 1 19 7 Drop 19 | . 1 . 1 2 13 2 Fire 81 | . 16 . . 1 29 35 Melee 30 | . . . . . 15 15 Ram 2 | . . . . . . 2 Kick . | . . . . . . . Crush 2 | . . 1 . . 1 . Escape Stasis . | . . . . . . . Rewire 2 | . . . 1 1 . . Trap . | . . . . . . . Miscellaneous . | . . . . . . . Route ------- -11/Scrapyard -10/Materials -10/Mines -10/Exiles (discovered 2 exits: [*Min x2]) -9/Mines -8/Materials -7/Factory History --------- Turn | Location | Event 26 | -11/Scrapyard | Discovered new exit (range 16) 95 | -11/Scrapyard | Entered Materials 268 | -10/Materials | Discovered new exit (range 6) 289 | -10/Materials | Entered Mines 305 | -10/Mines | Met a Derelict bent on vengeance 306 | -10/Mines | Build established: Mutant 307 | -10/Mines | Deemed a non-threat by the Exiles lab entrance 309 | -10/Mines | Discovered new exit (range 5) 317 | -10/Mines | Entered Exiles 356 | -10/Exiles | Met 8R-AWN 383 | -10/Exiles | Met EX-HEX 445 | -10/Exiles | Met EX-DEC 501 | -10/Exiles | Visited The Gauntlet 705 | -10/Exiles | Learned location of Zion (-7) 796 | -10/Exiles | Discovered new exit (range 14) 1159 | -10/Exiles | Discovered new exit (range 15) 1382 | -10/Exiles | Met EX-BIN 1432 | -10/Exiles | Aligned with FarCom system 1434 | -10/Exiles | Given EX-Vault access code 1533 | -10/Exiles | Opened EX-Vault 1569 | -10/Exiles | Found Latent Energy Streamer 1598 | -10/Exiles | Warned to stay clear of 0b10 Research branches 1715 | -10/Exiles | Left Exiles lab with Latent Energy Streamer 1715 | -10/Exiles | Entered Mines 2010 | -9/Mines | Build established: Skirmisher 2056 | -9/Mines | Received a Rocket Launcher from a helpful Derelict 2350 | -9/Mines | Discovered new exit (range 3) 2361 | -9/Mines | Entered Materials 2361 | -8/Materials | Evolved 4 slots: Power x1, Propulsion x2, Utility x1 3090 | -8/Materials | Build established: Mutant 3235 | -8/Materials | System corruption reached 10% 3286 | -8/Materials | Destroyed 8 combat bots 3430 | -8/Materials | Lost 4 parts (2p2n) 4263 | -8/Materials | Discovered new exit (range 10) 4285 | -8/Materials | Entered Factory 4285 | -7/Factory | Evolved 2 slots: Utility x2 5044 | -7/Factory | System corruption reached 10% 5085 | -7/Factory | First assault squad dispatched 5104 | -7/Factory | Cargo convoy interrupted 5132 | -7/Factory | Found Prototype Launcher 5132 | -7/Factory | Identified Rocket Array 5169 | -7/Factory | Destroyed 7 combat bots 5194 | -7/Factory | Lost 11 parts (2p4n3u2w) 5221 | -7/Factory | Core integrity fell below 50% 5274 | -7/Factory | Core integrity fell below 20% 5301 | -7/Factory | Lost 9 parts (1p4n3u1w) 5337 | -7/Factory | Destroyed by P-60 Hacker with Shock Rifle Last Messages --------------- 05289_ U-05 Engineer builds a Wall. 05291_ U-05 Engineer lays Concrete. 05293_ U-05 Engineer builds a Wall. 05296_ The unstable cave ceiling collapses. 05296_ Acquired Imp. Heat Sink. 05296_ U-05 Engineer lays Concrete. 05298_ Acquired 56 matter. 05299_ U-05 Engineer builds a Wall. 05308_ K-01 Serf collects debris. 05309_ Acquired Lgt. Nuclear Core. 05311_ K-01 Serf collects debris. 05326_ System corrupted: Energy discharge (-48). 05328_ Lgt. Angular Momentum Engine destroyed. 05328_ K-01 Serf collects debris. 05330_ R-06 Scavenger collects Imp. Heat Sink. 05332_ K-01 Serf collects debris. 05335_ Sneak attack on R-06 Scavenger. 05335_ Destroyed Com. Wheel. 05335_ R-06 Scavenger destroyed. 05335_ K-01 Serf collects debris. Map ----- +----------------------------------------------------+ | ?????????# [" """ ""#??????????????????????? | | ########?# " ""#??????????????????????? | | ?# # ! "#??????????????????????? | | # # #??????????????????????? | | # #############?????????????????????? | | # #?????????? ??????????????????????? | | # #?????????? ??????????????????????? | | """ + #?######## ???????????????????????? | | ???""" # #? # ???????????????????????? | | ???""" # # /????????????????????????? | | ########## | # #????????????????????????? | | !!] *%!# #????????????????????????? | | !!] = # """" #?????????? #????????????? | | " !! !//# """" #????????? #????????????? | | " !//# """" #?"""???? +????????????? | | " ^ !//# """" # """ ? #????????????? | | " # # #????????????? | | " ###+############ #????????????? | | C% % ?????????????? | | *% ???????????????? | | = ???????????????? | | * ????????????????? | | ? =%== C ????????????????? | | ?## %] ! ""####+######p############???????????? | | ??# [ !" ?# # ##??????????? | | ??# " " ?# """" #@ m ##??????????? | | ??# """"" ?# """"" #*%* #??????????? | | ??? # ###?# """ #%k ##??????????? | | ??? ###????# # ##??????????? | | ???? ????????# % #%! ##??????????? | | ???????????????# [!!# ##??????????? | | ???????????????# [! # ##??????????? | | ???????????????# [! # ##??????????? | | ???????????????####+##### ###?????????? | | ????????????????? # # #?????????? | | ??????????????? #% # # #?????????? | | ??????????????? #### # #####+# #?????????? | | ?????????????? # ####### # ?????????? | | ??????????????? #### # # ##?????????? | | ???????????????"" ####""######## #??????????? | | ???????????????"" " #??????????? | | ???????????????F" #??????????? | | ???????????? "" w ########??????? | | ?????? ????? ""T"" | | ?????? # """"" #########??????? | | ????? =[ "" #??????????????? | | ????? [! #??????????????? | | ????? # #######??????????????? | | ????? " #####????????????????????? | | ????? #??????????????????????????? | +----------------------------------------------------+ Best States ------------- Heat Dissipation 48 Energy Generation 27 Energy Capacity 440 Matter Stores 450 Matter Capacity 450 Sight Range 16 Terrain Scan Range 14 Terrain Scan Density 10 Additional Mass Support 6 Armor Coverage 225 Resistance: KI 30 Resistance: EM 15 Utility Shielding 66 Evasion (%) 64 Recoil Reduction 4 Offensive Hacking 10 Item Schematics ----------------- None Robot Schematics ------------------ None Fabricated ------------ Nothing Repaired ---------- Nothing Studied --------- None Alien Tech Used ----------------- None Achievements -------------- Blue Mage Sixth Sense Challenges ------------ None Game ------ Seed OvertunedTerrainJack Manual? 0 Play Time 00:51:44 Cumulative 18.9 hours Start 2026.09.11 @ 02:46:46 End 2026.09.12 @ 21:13:14 Sessions 3 Manual Loads 0 Difficulty Rogue Special Mode None Game No. 41 Rogue 41 Adventurer 0 Explorer 0 Win Type - Total 0 Types 0/0/0/0/0/0/0/0/0/0 Lore% 12 Gallery% 19 Achievement% 17 Wizard Run 0 Options --------- Layout 1 ASCII 0 Keyboard 0 Movement Arrows Keybinds 0 Fullscreen 2 Font 24/Smallcaps Map View 50x35 Zoom Use 0% Tactical HUD 1 Map Filters NONE Filters NONE Steam 1 RUN: ffff6951-6b66-4f6d-854c-99962cdf2f54